[Event "44th Chess Olympiad Open 2022"]
[Site "Chennai"]
[Date "2022.07.30"]
[Round "2.26"]
[White "Castro Torres, Jose Luis"]
[Black "Sonis, Francesco"]
[Result "0-1"]
[WhiteElo "2326"]
[BlackElo "2543"]
[Annotator "TA"]
[PlyCount "70"]
[EventDate "2022.??.??"]
[TimeControl "60"]

{[%evp 13,70,11,39,5,9,0,0,0,25,20,25,22,50,27,66,63,67,49,66,60,51,41,35,-24,
-21,-35,-30,-40,-46,-89,-87,-185,-175,-214,-226,-230,-220,-233,-233,-210,-213,
-310,-293,-383,-391,-374,-362,-362,-335,-476,-378,-472,-472,-460,-463,-451,
-457,-413,-403]} 1. e4 {[%emt 0:00:06]} c5 {[%emt 0:00:09]} 2. Nf3 {[%emt 0:00:
00]} d6 {[%emt 0:00:06]} 3. d4 {[%emt 0:00:12]} cxd4 {[%emt 0:00:06]} 4. Nxd4 {
[%emt 0:00:59]} Nf6 {[%emt 0:00:09]} 5. Nc3 {[%emt 0:00:04]} a6 {[%emt 0:00:05]
} 6. Be3 {[%emt 0:00:08]} e5 {[%emt 0:00:09]} 7. Nb3 {[%emt 0:00:01]} Be7 {
[%emt 0:00:05]} 8. h3 {[%emt 0:00:05] B90: Sicilian Najdorf: Unusual White 6th
moves, 6 Be3 Ng4 and 6 Be3 e5.} Be6 {[%emt 0:01:24]} 9. Qf3 {[%emt 0:00:11]}
Nbd7 {[%emt 0:00:52]} 10. O-O-O {[%emt 0:11:57] The position is equal.} Rc8 {
[%emt 0:04:15][%cal Yc8c3]} 11. Nd5 {[%emt 0:00:01]} Bxd5 {[%emt 0:02:26]} 12.
exd5 {[%emt 0:00:03]} O-O {[%emt 0:01:20]} 13. g4 {[%emt 0:07:57]} Qc7 {
[%emt 0:11:18][%csl Gc8][%cal Rc7c2]} 14. c3 {[%emt 0:26:10] [#]} e4 $146 {
[%emt 0:07:21]} ({Predecessor:} 14... Nb6 15. g5 e4 16. Bxb6 Qxb6 17. Qe2 Nd7
18. h4 Ne5 19. Bh3 Nd3+ 20. Rxd3 exd3 21. Qxd3 {0-1 (48) Mikhalevski,V (2562)
-Zvjaginsev,V (2599) Warsaw 2021}) 15. Qg2 {[%emt 0:02:36] g5 is the strong
threat.} Nb6 {[%emt 0:01:29]} 16. Bxb6 {[%emt 0:00:02]} Qxb6 {[%emt 0:00:05]}
17. g5 {[%emt 0:02:03]} Nd7 {[%emt 0:00:40]} 18. Qxe4 {[%emt 0:12:33]} (18. Rg1
$14) 18... Bxg5+ $11 {[%emt 0:00:41]} 19. Kb1 {[%emt 0:00:38]} Bf6 {[%emt 0:00:
00]} (19... Qxf2 $2 20. Qg4 $18) 20. Bd3 {[%emt 0:12:10][%csl Gd3][%cal Re4h7]}
g6 {[%emt 0:00:06]} 21. h4 {[%emt 0:02:11] [#]} Nc5 $1 {[%emt 0:06:57]} (21...
Qxf2 $6 22. h5 Rce8 23. Qb4 $11) 22. Qf3 {[%emt 0:02:48] [#]} (22. Qc4 $17)
22... Bxc3 $1 $19 {[%emt 0:02:33]} 23. Bxg6 {[%emt 0:00:13]} (23. h5 Bg7) 23...
fxg6 {[%emt 0:01:50]} 24. Qxc3 {[%emt 0:00:09]} Nxb3 {[%emt 0:02:34]} ({
Stronger than} 24... Rxf2 25. h5 Qc7 26. Nxc5 (26. hxg6 Na4 $11) 26... Qxc5 27.
hxg6 $11) 25. Qxb3 {[%emt 0:00:12]} Qxb3 {[%emt 0:00:07]} ({Worse is} 25...
Qxf2 26. h5 g5 27. h6 $17) 26. axb3 {[%emt 0:00:02]} Rxf2 {[%emt 0:00:07]
Endgame KRR-KRR} 27. h5 {[%emt 0:11:31]} (27. Rhe1 {was called for.}) 27...
Rcc2 {[%emt 0:00:34]} 28. hxg6 {[%emt 0:07:50]} Rxb2+ {[%emt 0:00:05]} 29. Ka1
{[%emt 0:00:05]} Ra2+ {[%emt 0:00:04]} 30. Kb1 {[%emt 0:00:02]} hxg6 {[%emt 0:
00:11]} 31. Rh6 {[%emt 0:02:12]} (31. Rdg1 {was worth a try.} Rfb2+ 32. Kc1
Rc2+ 33. Kb1 Rab2+ 34. Ka1) 31... Rfb2+ {[%emt 0:00:07]} 32. Kc1 {[%emt 0:00:
00]} Rg2 {[%emt 0:03:13][%cal Ra2a1]} 33. Kb1 {[%emt 0:00:32][%cal Yh6g6]
Inhibits Ra1+.} Rab2+ {[%emt 0:01:21]} 34. Ka1 {[%emt 0:00:02][%cal Yh6g6]}
Rxb3 {[%emt 0:00:06]} 35. Re1 {[%emt 0:01:33]} Rg4 {[%emt 0:00:15] Weighted
Error Value: White=0.31/Black=0.05 (flawless)} 0-1

[Event "44th Chess Olympiad Open 2022"]
[Site "Chennai"]
[Date "2022.07.30"]
[Round "2.27"]
[White "Bjerre, Jonas Buhl"]
[Black "Bwalya, Gillan"]
[Result "1/2-1/2"]
[WhiteElo "2608"]
[BlackElo "2396"]
[Annotator "TA"]
[PlyCount "76"]
[EventDate "2022.??.??"]
[TimeControl "60"]

{[%evp 14,76,41,39,47,39,42,39,39,29,56,53,52,0,0,14,0,0,4,15,0,5,41,55,53,39,
43,49,52,49,61,62,79,61,76,57,45,40,137,82,101,60,59,62,68,73,60,70,60,46,81,
50,118,16,16,-170,-185,-179,-164,-167,-170,-170,-170,-366,-360]} 1. e4 {
[%emt 0:00:14]} e5 {[%emt 0:02:30]} 2. Nf3 {[%emt 0:00:26]} Nc6 {[%emt 0:00:26]
} 3. Bb5 {[%emt 0:00:06]} Nf6 {[%emt 0:04:48]} 4. d3 {[%emt 0:01:39]} d6 {
[%emt 0:02:29]} 5. O-O {[%emt 0:00:47]} Be7 {[%emt 0:00:21]} 6. c3 {[%emt 0:00:
00]} O-O {[%emt 0:02:37]} 7. Re1 {[%emt 0:01:18]} Bd7 {[%emt 0:01:21]} 8. Nbd2
{[%emt 0:03:56][%cal Yb1d2,Yd2f1,Yf1g3]} Re8 {[%emt 0:04:29] C66: Ruy Lopez:
Steinitz Defence.} 9. Nf1 {[%emt 0:06:30]} h6 {[%emt 0:04:14]} 10. Ng3 {
[%emt 0:02:41]} Bf8 {[%emt 0:03:09] White is slightly better.} 11. d4 {[%emt 0:
00:00]} Na5 {[%emt 0:19:41]} 12. Bd3 {[%emt 0:09:16]} c5 {[%emt 0:10:20] [#]}
13. b4 $146 {[%emt 0:13:38]} ({Predecessor:} 13. h3 g6 14. d5 c4 15. Bc2 b6 16.
Be3 Bg7 17. Qd2 Kh7 18. Kh1 Qc8 19. Rg1 {1-0 (63) Matvienko,V (1977)-Rizsonkov,
V (2233) Uzhgorod 2007}) 13... cxb4 {[%emt 0:00:00]} 14. cxb4 {[%emt 0:00:07]}
Nc6 {[%emt 0:00:41][%csl Yb4,Yd4]} 15. b5 {[%emt 0:02:58]} Nxd4 {[%emt 0:00:00]
} 16. Nxd4 {[%emt 0:00:32]} exd4 {[%emt 0:00:00]} 17. Bb2 {[%emt 0:00:46]} Ng4
{[%emt 0:00:00]} 18. Bxd4 {[%emt 0:02:16]} Qh4 {[%emt 0:00:00]} 19. h3 {
[%emt 0:01:16]} Ne5 {[%emt 0:00:29]} 20. Bf1 {[%emt 0:02:25]} g6 {[%emt 0:00:
00]} 21. Rc1 {[%emt 0:02:41]} Be6 {[%emt 0:02:00]} 22. Rc7 {[%emt 0:03:30]} Re7
{[%emt 0:07:21]} 23. Rc3 {[%emt 0:03:57]} Bg7 {[%emt 0:05:40]} 24. Ra3 {
[%emt 0:01:54]} Rd7 {[%emt 0:04:54]} 25. Qd2 {[%emt 0:03:08] Strongly
threatening f4.} g5 {[%emt 0:04:03] Prevents f4.} (25... d5 $14 26. Qc3 Qg5)
26. Ba1 {[%emt 0:03:38]} (26. Rxa7 $6 Rxa7 27. Bxa7 Bxh3 $14) ({Better is} 26.
Qd1) 26... d5 {[%emt 0:13:21]} 27. Nf5 {[%emt 0:07:06]} Bxf5 {[%emt 0:00:00]}
28. exf5 {[%emt 0:00:15]} d4 {[%emt 0:00:00]} 29. g3 {[%emt 0:00:57][%cal
Yg2g3,Yg3g4]} Qh5 {[%emt 0:00:00]} 30. g4 {[%emt 0:01:18]} Qh4 {[%emt 0:00:00]}
31. Re4 {[%emt 0:01:22]} (31. Bxd4 $2 Rxd4 $1 32. Qe3 (32. Qxd4 $2 Nf3+ 33.
Rxf3 Bxd4 $19) 32... h5 $1 33. gxh5 (33. Qxd4 $2 Nf3+ 34. Rxf3 Bxd4 $19) (33.
f6 $2 Bxf6 34. gxh5 Rf4 $19) 33... Bf8 $19) 31... Rad8 {[%emt 0:02:46]} 32. Qd1
{[%emt 0:03:16]} (32. Bxd4 $2 Rxd4 $1 33. Rxd4 Rxd4 $19) 32... b6 (32... h5 $1
$14) 33. Ra4 {[%emt 0:01:57]} ({Not} 33. Bxd4 $2 Rxd4 $1 34. Rxd4 Rxd4 $19) (
33. Qa4 h5 $14) ({White should play} 33. Bg2 $16) 33... h5 $1 $11 {[%emt 0:02:
08][%cal Yh6h5,Yh5g4,Yg4h3]} 34. Qe2 $2 {[%emt 0:05:26] This costs White the
game.} (34. Ra3 $11 {and White is okay.}) 34... hxg4 $19 {[%emt 0:00:00]} 35.
Rxe5 {[%emt 0:00:00]} Bxe5 {[%emt 0:00:00]} 36. Qxe5 {[%emt 0:00:00]} gxh3 {
[%emt 0:00:00] And now ...Rd5 would win.} 37. Ra3 {[%emt 0:01:16] [#] aiming
for Rg3.} Rd5 $1 {[%emt 0:00:00]} 38. Qg3 {[%emt 0:02:12]} (38. Qe7 h2+ 39. Kh1
Qxf2 40. Qxg5+ Kf8 41. Qh6+ (41. Bc4 $2 Qg1+ 42. Qxg1 hxg1=Q+ 43. Kxg1 Rc5 $19)
41... Ke8 42. Bxd4 Qxf1+ 43. Kxh2) 38... d3 {[%emt 0:00:00] Weighted Error
Value: White=0.32/Black=0.17 (very precise) . An unexpected result.} ({
Stronger than} 38... Rxf5 39. Qxh4 gxh4 40. Rxh3 $11) 1/2-1/2

[Event "44th Chess Olympiad Open 2022"]
[Site "Chennai"]
[Date "2022.07.30"]
[Round "2.27"]
[White "Rasmussen, Allan Stig"]
[Black "Phiri, Richmond"]
[Result "1/2-1/2"]
[WhiteElo "2550"]
[BlackElo "2293"]
[Annotator "TA"]
[PlyCount "80"]
[EventDate "2022.??.??"]
[TimeControl "60"]

{[%evp 21,80,75,128,63,135,149,243,249,237,244,427,233,306,300,425,422,405,408,
473,431,414,371,379,367,356,353,376,368,772,764,706,690,654,273,273,273,273,
273,265,37,37,9,72,69,67,20,32,14,14,17,18,4,4,3,4,0,4,11,32,18,33]} 1. e4 {
[%emt 0:00:04]} c5 {[%emt 0:01:01]} 2. Nf3 {[%emt 0:00:19]} e6 {[%emt 0:01:46]}
3. d4 {[%emt 0:01:56]} cxd4 {[%emt 0:00:04]} 4. Nxd4 {[%emt 0:00:10]} a6 {
[%emt 0:00:08]} 5. Bd3 {[%emt 0:01:20]} Nf6 {[%emt 0:02:27]} 6. O-O {[%emt 0:
00:00]} d6 {[%emt 0:00:03]} 7. c4 {[%emt 0:02:29]} Be7 {[%emt 0:00:29]} 8. Nc3
{[%emt 0:00:24]} O-O {[%emt 0:00:17]} 9. Be3 {[%emt 0:01:54]} b6 {[%emt 0:00:
00]} 10. f4 {[%emt 0:10:25]} Qc7 {[%emt 0:00:43]} 11. Rc1 {[%emt 0:01:09]} Nbd7
{[%emt 0:06:24]} ({Better is} 11... h6) 12. b4 {[%emt 0:05:34] 0x0.
0013b9de18c9dp-1022s more active pieces. The black rooks are badly placed. B42:
Sicilian: Kan Variation: 5 Bd3.} ({White should play} 12. g4 $1 $16) 12... Re8
{[%emt 0:14:18] [#]} (12... h6 $14) 13. g4 $1 $16 {[%emt 0:13:49][%cal Yg2g4,
Yg4g5]} g6 {[%emt 0:00:00]} (13... Nf8 $16 14. g5 N6d7) 14. g5 $18 {[%emt 0:02:
30] White is clearly better.} Nh5 {[%emt 0:17:02] [#]} 15. Be2 $1 {[%emt 0:15:
34] [#]} Bb7 $146 {[%emt 0:00:00]} (15... Ne5 {might work better.} 16. fxe5
dxe5) ({Predecessor:} 15... Ng7 16. f5 exf5 17. Nd5 Qb7 18. exf5 Bf8 19. Bf3
Qb8 20. Nc6 Qb7 21. Nde7+ Kh8 22. fxg6 fxg6 {1-0 (29) Moiseev,V (2460)
-Waldmann,G Hartberg 1991}) 16. f5 {[%emt 0:07:01]} (16. Bxh5 $142 gxh5 17.
Qxh5) 16... Bf8 {[%emt 0:06:37]} 17. Bxh5 {[%emt 0:05:04][%cal Yf5e6]} gxh5 {
[%emt 0:00:00]} (17... exf5 {was called for.} 18. Bf3 fxe4) 18. Qxh5 {[%emt 0:
00:00]} (18. fxe6 fxe6 19. Qxh5 Ne5 $16) 18... Ne5 {[%emt 0:00:00]} 19. Rf4 {
[%emt 0:03:55]} Rac8 {[%emt 0:43:18]} 20. Rc2 {[%emt 0:19:58] Rh4 is the
strong threat.} Ng6 {[%emt 0:00:00] Inhibits Rh4.} 21. fxg6 {[%emt 0:00:00]}
hxg6 {[%emt 0:00:00]} 22. Qh3 {[%emt 0:00:00]} Bg7 {[%emt 0:05:07]} 23. Rh4 {
[%emt 0:00:00]} (23. Rcf2 Re7 $16) 23... Qxc4 {[%emt 0:00:00]} 24. Nd5 {
[%emt 0:01:30]} Qxd4 {[%emt 0:00:00]} (24... Bxd5 25. Rxc4 Bxc4) 25. Bxd4 {
[%emt 0:01:12]} ({Not} 25. Ne7+ Rxe7 26. Rxc8+ Bxc8 $16) 25... Bxd4+ {[%emt 0:
00:00]} 26. Kf1 {[%emt 0:00:29] Intending Nf6+ and mate.} exd5 {[%emt 0:00:00]}
27. Rxc8 {[%emt 0:00:37]} (27. Qd7 $142 Rf8 28. Rxc8 (28. Qxb7 Rxc2 29. Qxd5
Be5 $11) 28... Bxc8 29. Qxd6) 27... Bxc8 {[%emt 0:00:37][%cal Yb7c8,Yc8f5,
Yf5d3] A strong pair of Bishops.} 28. Qd3 {[%emt 0:00:27]} Be5 {[%emt 0:00:00]}
29. exd5 {[%emt 0:00:34]} ({Resist} 29. Qxd5 Be6 30. Qb7 Bxa2 31. Qxa6 Be6 $18)
29... b5 {[%emt 0:00:00]} 30. Qd2 $2 {[%emt 0:00:35]} (30. Qa3 $18) 30... Bf5
$14 {[%emt 0:00:00]} 31. Rf4 {[%emt 0:00:30]} Bxf4 {[%emt 0:00:00]} (31... Rc8
$1 $11 {keeps the balance.}) 32. Qxf4 $11 {[%emt 0:00:01] Endgame KQ-KRB} Re5 {
[%emt 0:00:00] Hoping for ...Bh3+.} 33. h4 {[%emt 0:00:32]} (33. Qf3 $14) 33...
Rxd5 {[%emt 0:00:00]} 34. Qe3 {[%emt 0:00:00]} Bd3+ {[%emt 0:00:00]} 35. Kg1 {
[%emt 0:00:45] White has compensation.} Bc4 {[%emt 0:00:00]} 36. a3 {[%emt 0:
00:35]} Rd3 {[%emt 0:00:00]} 37. Qe8+ {[%emt 0:00:23]} Kg7 {[%emt 0:00:00]} 38.
Qe7 {[%emt 0:00:35]} Rxa3 {[%emt 0:00:00]} 39. Qxd6 {[%emt 0:00:29]} Ra2 {
[%emt 0:00:31]} 40. Qf6+ {[%emt 0:00:34]} Kg8 {[%emt 0:00:00] Blacks defense
is rewarded with a draw. Weighted Error Value: White=0.51/Black=0.29 (precise)}
1/2-1/2

[Event "44th Chess Olympiad Open 2022"]
[Site "Chennai"]
[Date "2022.07.30"]
[Round "2.27"]
[White "Mwali, Chitumbo"]
[Black "Thybo, Jesper Sondergaard"]
[Result "1/2-1/2"]
[WhiteElo "2320"]
[BlackElo "2520"]
[Annotator "TA"]
[PlyCount "109"]
[EventDate "2022.??.??"]
[TimeControl "60"]

{[%evp 17,109,0,0,0,0,0,0,0,0,0,0,0,24,37,14,20,22,0,0,0,0,0,0,0,0,0,62,66,70,
48,63,0,0,0,15,15,15,15,28,18,54,50,50,42,54,50,88,61,68,61,85,90,136,135,139,
139,143,141,152,125,152,152,217,217,217,135,165,67,79,45,80,54,54,54,80,54,59,
55,200,200,217,217,224,224,224,224,550,535,526,0,16,0,276,0]} 1. Nf3 {[%emt 0:
00:00]} c5 {[%emt 0:00:35]} 2. c4 {[%emt 0:00:17]} Nc6 {[%emt 0:01:41]} 3. g3 {
[%emt 0:01:30]} g6 {[%emt 0:01:01]} 4. Bg2 {[%emt 0:00:36]} Bg7 {[%emt 0:00:11]
} 5. Nc3 {[%emt 0:00:35]} e5 {[%emt 0:00:36]} 6. O-O {[%emt 0:01:27]} Nge7 {
[%emt 0:00:54]} 7. a3 {[%emt 0:03:32]} O-O {[%emt 0:07:31]} 8. b4 {[%emt 0:00:
00]} d5 {[%emt 0:01:15]} 9. cxd5 {[%emt 0:18:28]} Nxd5 {[%emt 0:01:01]} 10.
Nxd5 {[%emt 0:01:30] A37: Symmetrical English vs ...g6:4 Bg2 Bg7 5 Nf3.} Qxd5 {
[%emt 0:01:10]} 11. Bb2 {[%emt 0:00:39][%cal Yf3e5]} (11. Ng5 {with more
complications.} Qd4 12. Rb1 cxb4 13. axb4 Bf5 14. d3) 11... e4 {[%emt 0:03:23]}
12. Bxg7 {[%emt 0:02:00] The position is equal.} Kxg7 {[%emt 0:00:07]} 13. Ne1
{[%emt 0:00:21]} Bf5 {[%emt 0:03:44]} 14. d3 {[%emt 0:02:30]} Rad8 {[%emt 0:00:
00]} 15. Qb1 {[%emt 0:01:16][%cal Rd3e4]} Rfe8 {[%emt 0:00:13]} 16. bxc5 {
[%emt 0:02:00]} Nd4 {[%emt 0:01:19]} (16... Qxc5 17. dxe4 Bg4 18. Nd3 $14) 17.
e3 {[%emt 0:05:26]} Nb3 {[%emt 0:04:29] [#]} 18. dxe4 $146 {[%emt 0:02:59]} ({
Predecessor:} 18. Qb2+ Kg8 19. Rb1 Nxc5 20. d4 Na4 21. Qxb7 Qa2 22. Qb3 Qxb3
23. Rxb3 Be6 24. Rb4 {0-1 (49) Solomon,K (2348)-Avrukh,B (2645) Gibraltar 2009}
) 18... Bxe4 {[%emt 0:01:16]} 19. Bxe4 {[%emt 0:00:03]} Rxe4 {[%emt 0:00:42]}
20. Ra2 {[%emt 0:00:10][%cal Ya1a2,Ya2b2,Yb2b3]} Re6 {[%emt 0:04:20]} 21. Nf3 {
[%emt 0:01:55][%cal Ya2b2] Inhibits Nd2.} Rf6 {[%emt 0:06:35]} (21... Rd7 $11)
22. Rb2 $1 $14 {[%emt 0:16:42]} Qxf3 {[%emt 0:14:25]} (22... Nxc5 $2 23. Rd2
Qxf3 24. Rxd8 $18) 23. Rxb3 {[%emt 0:00:00]} Rd2 {[%emt 0:00:16][%cal Rd2f2]}
24. e4 {[%emt 0:00:00]} ({White should try} 24. Rb2 $14 Rd7 25. Qc2) 24... Qe2
$11 {[%emt 0:01:51][%cal Rf6f2]} 25. Re3 {[%emt 0:00:00]} Qc4 {[%emt 0:09:54]}
26. e5 {[%emt 0:03:48]} Re6 {[%emt 0:00:00]} 27. Qxb7 {[%emt 0:00:00]} Qxc5 {
[%emt 0:00:00]} 28. Qb4 $36 {[%emt 0:00:29] White is more active.} Qd5 {
[%emt 0:00:00]} 29. Rfe1 {[%emt 0:00:48]} Rd4 {[%emt 0:00:00]} 30. Qb8 {
[%emt 0:02:01]} Qa5 {[%emt 0:00:40]} 31. Rc1 {[%emt 0:01:02][%cal Ye1c1,Yc1c3,
Yc3c7]} Rd8 {[%emt 0:03:37]} 32. Qc7 {[%emt 0:00:25]} Qd2 {[%emt 0:01:08]} 33.
Qc3 {[%emt 0:00:40]} (33. Qc2 {looks sharper.} Qd5 34. h4 Rd7 35. Qe4) 33...
Qxc3 {[%emt 0:00:15]} 34. Rcxc3 $14 {[%emt 0:00:05] Endgame KRR-KRR} Rd5 {
[%emt 0:00:44]} ({Better is} 34... Re7) 35. Rc7 $1 $16 {[%emt 0:00:16]
Strongly threatening Rf3.} Rdxe5 {[%emt 0:00:23]} 36. Rxe5 {[%emt 0:00:07]}
Rxe5 {[%emt 0:00:04]} 37. Rxa7 {[%emt 0:00:06] KR-KR} Re1+ {[%emt 0:00:55]} 38.
Kg2 {[%emt 0:00:02]} h5 {[%emt 0:00:28]} 39. h4 {[%emt 0:00:10]} Ra1 {[%emt 0:
00:20]} (39... Kf6 $16 40. a4 Re2) 40. Kf3 {[%emt 0:00:52]} Ra2 {[%emt 0:00:15]
} 41. Ke3 {[%emt 0:31:08]} Kf6 {[%emt 0:00:00]} 42. f3 {[%emt 0:00:00]} (42.
Ra5 $18) 42... Kg7 {[%emt 0:02:41]} 43. Ra4 {[%emt 0:00:00]} Kg8 {[%emt 0:03:
07]} 44. Kf4 {[%emt 0:00:00]} Kg7 {[%emt 0:00:00]} 45. Ra7 {[%emt 0:00:00]} Kf6
{[%emt 0:00:37]} 46. Ra6+ {[%emt 0:00:00]} Kg7 $1 {[%emt 0:00:21]} 47. a4 {
[%emt 0:00:00][%cal Ya3a4,Ya4a5] Black must now prevent a5.} Ra3 {[%emt 0:01:
56]} (47... f6 $1 $14) 48. Ra8 $1 $18 {[%emt 0:00:00]} Ra1 {[%emt 0:01:29]} 49.
a5 {[%emt 0:00:00]} Ra4+ {[%emt 0:02:43]} 50. Ke5 {[%emt 0:00:00]} Ra3 {
[%emt 0:04:35] [#]} 51. Ke4 {[%emt 0:00:00]} ({Don't do} 51. a6 $6 Rxf3 52. Rc8
(52. a7 Ra3 $11) 52... Ra3 $16) 51... Ra4+ $2 {[%emt 0:00:20] [#]} (51... Kf6 {
is tougher.} 52. a6 Ke6) 52. Kd5 $1 {[%emt 0:00:00]} Ra3 {[%emt 0:00:03]} 53.
Ke4 {[%emt 0:06:59]} (53. a6 $18 Rxf3 54. Kc6 (54. a7 Ra3 $11)) 53... Ra4+ $1
$11 {[%emt 0:00:33]} 54. Kd5 $2 {[%emt 0:00:38]} (54. Kd3 $11 Ra3+ 55. Ke2)
54... Ra3 $1 $18 {[%emt 0:00:08]} 55. Ke4 $2 {[%emt 0:02:45] Weighted Error
Value: White=0.25 (precise) /Black=0.23 (precise)} (55. a6 $18) 1/2-1/2

[Event "44th Chess Olympiad Open 2022"]
[Site "Chennai"]
[Date "2022.07.30"]
[Round "2.27"]
[White "Lungu, Nase"]
[Black "Haubro, Martin"]
[Result "1-0"]
[WhiteElo "2216"]
[BlackElo "2411"]
[Annotator "TA"]
[PlyCount "77"]
[EventDate "2022.??.??"]
[TimeControl "60"]

{[%evp 9,76,0,0,14,10,4,8,-19,-12,-9,33,0,0,0,0,0,0,0,0,0,0,0,30,28,58,54,57,
66,62,68,96,99,98,100,89,91,120,84,107,107,103,106,115,82,82,82,93,93,95,88,95,
93,99,34,105,93,359,337,518,495,29981,29982,29977,29979,29994,29995,29998,
29999,29999]} 1. c4 {[%emt 0:00:05]} e6 {[%emt 0:00:04]} 2. Nf3 {[%emt 0:01:41]
} d5 {[%emt 0:00:06]} 3. g3 {[%emt 0:04:00]} dxc4 {[%emt 0:00:53]} 4. Qa4+ {
[%emt 0:00:27]} Nd7 {[%emt 0:00:06]} 5. Bg2 {[%emt 0:00:57]} a6 {[%emt 0:03:07]
} 6. Nc3 {[%emt 0:01:30] A13: English Opening: 1...e6.} Ngf6 {[%emt 0:05:42]}
7. O-O {[%emt 0:01:11]} Be7 {[%emt 0:06:00]} 8. Ne5 {[%emt 0:04:03] The
position is equal.} O-O {[%emt 0:05:31]} 9. Nxc4 {[%emt 0:05:14] [#]} c5 $146 {
[%emt 0:02:59]} ({Predecessor:} 9... b5 10. Qc2 bxc4 11. Bxa8 e5 12. Bg2 Nc5
13. Na4 Qd4 14. Nxc5 Qxc5 15. b3 Be6 {0-1 (42) Mikhailovsky,V (2167)
-Matviishen,V (2423) Chess.com INT 2018}) 10. Qb3 {[%emt 0:04:44]} Rb8 $1 {
[%emt 0:15:08]} 11. a4 $1 {[%emt 0:01:22] Against b5} b6 $1 {[%emt 0:00:05]}
12. d3 {[%emt 0:00:35]} Bb7 {[%emt 0:03:17]} 13. Bxb7 {[%emt 0:01:30]} Rxb7 {
[%emt 0:00:05]} 14. Bf4 {[%emt 0:00:07]} Qc8 {[%emt 0:05:11]} 15. Bd6 {[%emt 0:
00:00]} Qe8 {[%emt 0:00:15]} 16. Rfd1 {[%emt 0:29:44]} Nd5 {[%emt 0:14:20]} 17.
d4 {[%emt 0:09:35]} cxd4 {[%emt 0:13:21]} 18. Rxd4 {[%emt 0:00:27]} Nc5 {
[%emt 0:00:57]} 19. Qa3 {[%emt 0:01:04]} Qc6 {[%emt 0:10:52]} 20. Nxd5 {
[%emt 0:03:13]} (20. Bxe7 {feels hotter.} Nxe7 21. Rad1 Nf5 22. Rd8) 20... exd5
{[%emt 0:00:20]} 21. Bxe7 {[%emt 0:00:24]} Rxe7 {[%emt 0:00:07]} 22. Ne3 {
[%emt 0:00:06]} Re4 {[%emt 0:08:18]} 23. Rad1 {[%emt 0:02:45][%cal Ya1d1,Yd1d4,
Yd4d5]} Rfe8 {[%emt 0:00:31]} 24. a5 {[%emt 0:02:21] Qc3 is the strong threat.}
Rxd4 {[%emt 0:01:32]} 25. Rxd4 {[%emt 0:00:23]} bxa5 {[%emt 0:00:00]} 26. Rxd5
{[%emt 0:03:38]} Nb7 {[%emt 0:00:41]} 27. Qd3 {[%emt 0:04:36]} g6 {[%emt 0:00:
34]} 28. Qd4 {[%emt 0:00:19]} h5 {[%emt 0:02:09] Inhibits Ng4.} 29. h3 {
[%emt 0:01:10]} Re6 {[%emt 0:00:51] [#]} 30. g4 $1 {[%emt 0:00:20] White is
more active.} hxg4 {[%emt 0:00:44]} 31. hxg4 $40 {[%emt 0:00:54] White is up
to no good.} (31. Nxg4 $16 {Strongly threatening Nh6+.} Qc1+ 32. Kg2) 31... Rd6
{[%emt 0:00:18]} ({Black should try} 31... Qb6 $14) 32. g5 $16 {[%emt 0:00:42]
[%cal Ye3g4]} Rxd5 $4 {[%emt 0:00:10] A mistake that costs the game.} (32...
Qc1+ $16 33. Kh2 Qc7) 33. Nxd5 {[%emt 0:01:25] Endgame White wants to mate
with Ne7+. KQN-KQN} (33. Qxd5 Qb5 $11) 33... Qc1+ {[%emt 0:00:27]} (33... Qe6 {
is a better defense.} 34. e3 a4 35. Nf6+ Kf8 36. Qb4+ Qe7 37. Nh7+ (37. Qxa4
Nc5 $18) 37... Ke8) 34. Kh2 $18 {[%emt 0:00:04] [#] Black must now prevent Qh4.
} Qc5 {[%emt 0:01:09]} (34... Qxg5 $2 35. Nf6+ Qxf6 36. Qxf6) (34... Qf1 $18
35. Qf4 (35. Qf6 Nd6 $18) 35... Nd6 36. Ne7+ (36. Qxd6 Qxf2+ 37. Kh3 Qf5+ 38.
Kg2 Qxg5+ 39. Kf3 Kg7 $18) 36... Kf8) 35. Nf6+ {[%emt 0:01:12] White mates.}
Kg7 {[%emt 0:00:16]} 36. Qh4 {[%emt 0:00:17][%csl Gg5][%cal Rh4h6]} Qd6+ {
[%emt 0:00:55]} 37. f4 {[%emt 0:00:00][%csl Gg5][%cal Rh4h6]} Kf8 {[%emt 0:00:
30]} 38. Qh8+ {[%emt 0:00:10]} Ke7 {[%emt 0:00:04]} 39. Qe8# {[%emt 0:00:07]
Weighted Error Value: White=0.07 (flawless) /Black=0.47} 1-0